fUST/lending_fUST_20260118
["ID","MTS","AMOUNT","RATE_DAILY","PERIOD"]
[402555537,1768706967701,713.08,0.00027397,120]
[402555538,1768706967746,500.0,0.00027397,120]
[402555539,1768706967797,310.80601953,0.00027397,120]
[402555540,1768706967884,500.0,0.00027397,120]
[402555541,1768706967946,713.08,0.00027397,120]
[402555542,1768706967995,500.0,0.00027397,120]
[402555543,1768706968119,500.0,0.00027397,120]
[402555544,1768706968184,713.08,0.00027397,120]
[402555545,1768706968233,500.0,0.00027397,120]
[402555546,1768706968371,500.0,0.00027397,120]
[402555547,1768706968423,713.08,0.00027397,120]
[402555548,1768706968471,198.0608621,0.00027397,120]
[402555549,1768706968605,500.0,0.00027397,120]
[402555550,1768706968941,713.08,0.00027397,120]
[402555551,1768706969000,500.0,0.00027397,120]
[402555552,1768706969048,713.08,0.00027397,120]
[402555553,1768706969189,500.0,0.00027397,120]
[402555554,1768706969233,713.08,0.00027397,120]
[402555555,1768706969344,500.0,0.00027397,120]
[402555556,1768706969387,713.08,0.00027397,120]
[402555557,1768706969543,663.38,0.00027397,120]
[402555558,1768706969593,500.0,0.00027397,120]
[402555559,1768706969639,713.08,0.00027397,120]
[402555560,1768706969785,663.38,0.00027397,120]
[402555561,1768706969827,500.0,0.00027397,120]
[402555562,1768706969876,713.08,0.00027397,120]
[402555563,1768706970017,663.38,0.00027397,120]
[402555564,1768706970096,713.08,0.00027397,120]
[402555565,1768706970248,663.38,0.00027397,120]
[402555566,1768706970379,713.08,0.00027397,120]
[402555567,1768706970424,500.0,0.00027397,120]
[402555568,1768706970480,663.38,0.00027397,120]
[402555569,1768706970618,713.08,0.00027397,120]
[402555570,1768706970664,500.0,0.00027397,120]
[402555571,1768706970760,663.38,0.00027397,120]
[402555572,1768706970848,713.08,0.00027397,120]
[402555573,1768706970894,500.0,0.00027397,120]
[402555574,1768706971001,663.38,0.00027397,120]
[402555575,1768706971106,713.08,0.00027397,120]
[402555576,1768706971152,500.0,0.00027397,120]
[402555577,1768706971230,663.38,0.00027397,120]
[402555578,1768706971342,713.08,0.00027397,120]
[402555579,1768706971389,500.0,0.00027397,120]
[402555580,1768706971471,663.38,0.00027397,120]
[402555581,1768706971583,713.08,0.00027397,120]
[402555582,1768706971629,485.24038374,0.00027397,120]
[402555583,1768706971693,663.38,0.00027397,120]
[402555584,1768706971812,713.08,0.00027397,120]
[402555585,1768706971967,663.38,0.00027397,120]
[402555586,1768706972195,663.38,0.00027397,120]
[402555587,1768706972385,713.16449451,0.00027397,120]
[402555588,1768706972429,663.38,0.00027397,120]
[402555589,1768706972605,480.72272657,0.00027397,120]
[402555590,1768706972650,663.38,0.00027397,120]
[402555591,1768706972880,663.38,0.00027397,120]
[402555592,1768706973219,663.38,0.00027397,120]
[402555593,1768706973628,663.38,0.00027397,120]
[402555594,1768706973680,500.0,0.00027397,120]
[402555595,1768706973728,663.38,0.00027397,120]
[402555596,1768706973845,500.0,0.00027397,120]
[402555597,1768706973917,663.38,0.00027397,120]
[402555598,1768706973962,500.0,0.00027397,120]
[402555599,1768706974084,500.0,0.00027397,120]
[402555600,1768706974150,663.38,0.00027397,120]
[402555601,1768706974304,500.0,0.00027397,120]
[402555602,1768706974391,663.38,0.00027397,120]
[402555603,1768706974437,500.0,0.00027397,120]
[402555604,1768706974522,500.0,0.00027397,120]
[402555605,1768706974617,663.38,0.00027397,120]
[402555606,1768706974659,548.06628505,0.00027397,120]
[402555607,1768706974738,500.0,0.00027397,120]
[402555608,1768706974850,663.38,0.00027397,120]
[402555609,1768706974956,500.0,0.00027397,120]
[402555610,1768706975094,663.46096017,0.00027397,120]
[402555611,1768706975187,500.0,0.00027397,120]
[402555612,1768706975427,500.0,0.00027397,120]
[402555613,1768706975659,500.0,0.00027397,120]
[402555614,1768706975887,500.0,0.00027397,120]
[402555615,1768706976100,500.0,0.00027397,120]
[402555616,1768706976317,500.0,0.00027397,120]
[402555617,1768706976555,500.0,0.00027397,120]
[402555618,1768706976809,500.0,0.00027397,120]
[402555619,1768706977039,500.0,0.00027397,120]
[402555620,1768706977276,500.0,0.00027397,120]
[402555621,1768706977541,500.0,0.00027397,120]
[402555622,1768706977790,500.0,0.00027397,120]
[402555623,1768706978033,500.0,0.00027397,120]
[402555624,1768706978312,500.0,0.00027397,120]
[402555625,1768706978544,500.0,0.00027397,120]
[402555626,1768706978782,500.0,0.00027397,120]
[402555628,1768706979027,466.03555392,0.00027397,120]
[402555630,1768706986069,500.0,0.00027397,120]
[402555631,1768706986300,500.0,0.00027397,120]
[402555632,1768706986534,500.0,0.00027397,120]
[402555633,1768706986760,500.0,0.00027397,120]
[402555634,1768706986990,500.0,0.00027397,120]
[402555635,1768706987244,500.0,0.00027397,120]
[402555636,1768706987507,500.0,0.00027397,120]
[402555637,1768706987795,500.0,0.00027397,120]
[402555638,1768706987981,500.0,0.00027397,120]
[402555639,1768706988184,500.0,0.00027397,120]
[402555640,1768706988234,500.0,0.00027397,120]
[402555641,1768706988409,524.49832817,0.00027397,120]
[402555642,1768706988458,500.0,0.00027397,120]
[402555643,1768706988685,500.0,0.00027397,120]
[402555644,1768706988919,500.0,0.00027397,120]
[402555645,1768706989154,500.0,0.00027397,120]
[402555646,1768706989224,500.0,0.00027397,120]
[402555647,1768706989366,500.0,0.00027397,120]
[402555648,1768706989444,500.0,0.00027397,120]
[402555649,1768706989648,482.00985191,0.00027397,120]
[402555650,1768706989699,500.0,0.00027397,120]
[402555651,1768706989741,500.0,0.00027397,120]
[402555652,1768706989837,500.0,0.00027397,120]
[402555653,1768706989888,500.0,0.00027397,120]
[402555654,1768706990075,500.87892174,0.00027397,120]
[402555655,1768706990121,500.0,0.00027397,120]
[402555656,1768706990167,500.0,0.00027397,120]
[402555657,1768706990300,500.0,0.00027397,120]
[402555658,1768706990356,268.84890581,0.00027397,120]
[402555659,1768706990540,500.0,0.00027397,120]
[402555660,1768706990782,500.0,0.00027397,120]
[402555661,1768706991115,318.61503701,0.00027397,120]
[402555662,1768706991832,500.35,0.00027397,120]
[402555663,1768706992077,500.35,0.00027397,120]
[402555664,1768706992251,547.33,0.00027397,120]
[402555665,1768706992415,500.35,0.00027397,120]
[402555666,1768706992507,547.33,0.00027397,120]
[402555667,1768706992683,500.35,0.00027397,120]
[402555668,1768706992734,547.33,0.00027397,120]
[402555669,1768706992927,500.35,0.00027397,120]
[402555670,1768706992980,547.33,0.00027397,120]
[402555671,1768706993134,542.52,0.00027397,120]
[402555672,1768706993184,500.35,0.00027397,120]
[402555673,1768706993229,500.0,0.00027397,120]
[402555674,1768706993281,547.33,0.00027397,120]
[402555675,1768706993372,542.52,0.00027397,120]
[402555676,1768706993422,500.0,0.00027397,120]
[402555677,1768706993475,547.33,0.00027397,120]
[402555678,1768706993522,500.35,0.00027397,120]
[402555679,1768706993654,542.52,0.00027397,120]
[402555680,1768706993700,479.17952491,0.00027397,120]
[402555681,1768706993747,547.33,0.00027397,120]
[402555682,1768706993791,500.35,0.00027397,120]
[402555683,1768706994064,542.52,0.00027397,120]
[402555684,1768706994111,547.33,0.00027397,120]
[402555685,1768706994143,299.77,9.98e-05,2]
[402555686,1768706994192,500.35,0.00027397,120]
[402555687,1768706994241,542.52,0.00027397,120]
[402555688,1768706994290,547.33,0.00027397,120]
[402555689,1768706994336,500.35,0.00027397,120]
[402555690,1768706994383,542.52,0.00027397,120]
[402555691,1768706994439,547.33,0.00027397,120]
[402555692,1768706994487,500.35,0.00027397,120]
[402555693,1768706994610,542.52,0.00027397,120]
[402555694,1768706994689,500.35,0.00027397,120]
[402555695,1768706994732,547.33,0.00027397,120]
[402555696,1768706994841,542.52,0.00027397,120]
[402555697,1768706994872,449.66,0.00010812,2]
[402555698,1768706994921,500.35,0.00027397,120]
[402555699,1768706995236,547.33,0.00027397,120]
[402555700,1768706995387,542.52,0.00027397,120]
[402555701,1768706995435,500.35,0.00027397,120]
[402555702,1768706995482,547.33,0.00027397,120]
[402555703,1768706995512,599.54,0.00011644,2]
[402555704,1768706995558,542.52,0.00027397,120]
[402555705,1768706995611,547.33,0.00027397,120]
[402555706,1768706995655,500.35,0.00027397,120]
[402555707,1768706995697,542.52,0.00027397,120]
[402555708,1768706995740,500.35,0.00027397,120]
[402555709,1768706995781,547.33,0.00027397,120]
[402555710,1768706995822,749.43,0.00012476,2]
[402555711,1768706995868,542.52,0.00027397,120]
[402555712,1768706995911,500.35,0.00027397,120]
[402555713,1768706995955,547.33,0.00027397,120]
[402555714,1768706996003,542.52,0.00027397,120]
[402555715,1768706996107,500.35,0.00027397,120]
[402555716,1768706996159,547.33,0.00027397,120]
[402555717,1768706996204,500.0,0.00027397,120]
[402555718,1768706996263,542.52,0.00027397,120]
[402555719,1768706996333,500.35,0.00027397,120]
[402555720,1768706996377,547.33,0.00027397,120]
[402555721,1768706996430,500.8932302,0.00027397,120]
[402555722,1768706996488,542.52,0.00027397,120]
[402555723,1768706996575,500.35,0.00027397,120]
[402555724,1768706996623,547.33,0.00027397,120]
[402555725,1768706996726,542.52,0.00027397,120]
[402555726,1768706996806,500.35,0.00027397,120]
[402555727,1768706996855,547.33,0.00027397,120]
[402555728,1768706996966,542.52,0.00027397,120]
[402555729,1768706997082,500.35,0.00027397,120]
[402555730,1768706997128,547.33,0.00027397,120]
[402555731,1768706997247,542.52,0.00027397,120]
[402555732,1768706997322,500.35,0.00027397,120]
[402555733,1768706997375,547.33,0.00027397,120]
[402555734,1768706997570,500.51013728,0.00027397,120]
[402555735,1768706997616,547.33,0.00027397,120]
[402555736,1768706997832,542.52,0.00027397,120]
[402555737,1768706998065,542.52,0.00027397,120]
[402555738,1768706998301,547.36022621,0.00027397,120]
[402555739,1768706998346,542.52,0.00027397,120]
[402555740,1768706998587,542.52,0.00027397,120]
[402555741,1768706998857,542.52,0.00027397,120]
[402555742,1768706999116,542.57902308,0.00027397,120]
[402555744,1768707001001,500.0,0.00027397,120]
[402555745,1768707001238,500.0,0.00027397,120]
[402555746,1768707001493,500.0,0.00027397,120]
[402555747,1768707001749,500.0,0.00027397,120]
[402555748,1768707001883,596.18,0.00027397,120]
[402555749,1768707001968,167.26971798,0.00027397,120]
[402555750,1768707002084,500.0,0.00027397,120]
[402555751,1768707002140,596.18,0.00027397,120]
[402555752,1768707002233,500.0,0.00027397,120]
[402555753,1768707002355,596.18,0.00027397,120]
[402555754,1768707002408,500.0,0.00027397,120]
[402555755,1768707002490,500.0,0.00027397,120]
[402555756,1768707002634,596.18,0.00027397,120]
[402555757,1768707002712,500.0,0.00027397,120]
[402555758,1768707002758,500.0,0.00027397,120]
[402555759,1768707002821,596.18,0.00027397,120]
[402555760,1768707002871,500.0,0.00027397,120]
[402555761,1768707002965,500.0,0.00027397,120]
[402555762,1768707003068,596.18,0.00027397,120]
[402555763,1768707003138,500.0,0.00027397,120]
[402555764,1768707003229,500.0,0.00027397,120]
[402555765,1768707003316,596.18,0.00027397,120]
[402555766,1768707003364,500.0,0.00027397,120]
[402555767,1768707003486,500.0,0.00027397,120]
[402555768,1768707003557,596.18,0.00027397,120]
[402555769,1768707003701,573.92651285,0.00027397,120]
[402555770,1768707003750,500.0,0.00027397,120]
[402555771,1768707003809,596.18,0.00027397,120]
[402555772,1768707003943,500.0,0.00027397,120]
[402555773,1768707004063,596.18,0.00027397,120]
[402555774,1768707004371,500.0,0.00027397,120]
[402555775,1768707004422,596.18,0.00027397,120]
[402555776,1768707004473,331.97676736,0.00027397,120]
[402555777,1768707004530,596.18,0.00027397,120]
[402555778,1768707004837,596.18,0.00027397,120]
[402555779,1768707005083,596.18,0.00027397,120]
[402555780,1768707005338,596.18,0.00027397,120]
[402555781,1768707005571,596.18,0.00027397,120]
[402555782,1768707005823,596.18,0.00027397,120]
[402555783,1768707006075,596.18,0.00027397,120]
[402555784,1768707006303,596.18,0.00027397,120]
[402555785,1768707006543,596.18,0.00027397,120]
[402555786,1768707006843,596.18,0.00027397,120]
[402555787,1768707007092,596.18,0.00027397,120]
[402555788,1768707007213,557.8,0.00027397,120]
[402555789,1768707007325,596.18,0.00027397,120]
[402555790,1768707007455,557.8,0.00027397,120]
[402555791,1768707007522,590.81307979,0.00027397,120]
[402555792,1768707007697,596.32232997,0.00027397,120]
[402555793,1768707007746,557.8,0.00027397,120]
[402555794,1768707007963,557.8,0.00027397,120]
[402555795,1768707008239,557.8,0.00027397,120]
[402555796,1768707008496,557.8,0.00027397,120]
[402555797,1768707008757,557.8,0.00027397,120]
[402555798,1768707008999,557.8,0.00027397,120]
[402555799,1768707009271,557.8,0.00027397,120]
[402555800,1768707009511,557.8,0.00027397,120]
[402555801,1768707009867,557.8,0.00027397,120]
[402555802,1768707010014,557.8,0.00027397,120]
[402555803,1768707010194,500.0,0.00027397,120]
[402555804,1768707010254,557.8,0.00027397,120]
[402555805,1768707010437,500.0,0.00027397,120]
[402555806,1768707010496,557.8,0.00027397,120]
[402555807,1768707010667,500.7750833,0.00027397,120]
[402555808,1768707010745,557.8,0.00027397,120]
[402555809,1768707010981,557.8,0.00027397,120]
[402555810,1768707011442,557.8,0.00027397,120]
[402555813,1768707011672,557.8,0.00027397,120]
[402555814,1768707011906,557.8,0.00027397,120]
[402555815,1768707012158,557.8,0.00027397,120]
[402555816,1768707012560,557.8,0.00027397,120]
[402555817,1768707012787,557.8,0.00027397,120]
[402555818,1768707013020,557.8,0.00027397,120]
[402555819,1768707013254,557.82916873,0.00027397,120]
[402555820,1768707017025,500.0,0.00027397,120]
[402555821,1768707017258,500.0,0.00027397,120]
[402555822,1768707017513,500.0,0.00027397,120]
[402555823,1768707017750,500.0,0.00027397,120]
[402555824,1768707017973,500.0,0.00027397,120]
[402555825,1768707018218,500.0,0.00027397,120]
[402555826,1768707018339,624.05,0.00027397,120]
[402555827,1768707018459,500.0,0.00027397,120]
[402555828,1768707018539,500.0,0.00027397,120]
[402555829,1768707018594,624.05,0.00027397,120]
[402555830,1768707018701,500.0,0.00027397,120]
[402555831,1768707018761,500.7045947,0.00027397,120]
[402555832,1768707018817,624.05,0.00027397,120]
[402555833,1768707018930,500.0,0.00027397,120]
[402555834,1768707019042,624.05,0.00027397,120]
[402555835,1768707019165,553.32117414,0.00027397,120]
[402555836,1768707019273,624.05,0.00027397,120]
[402555837,1768707019886,624.05,0.00027397,120]
[402555838,1768707020235,624.05,0.00027397,120]
[402555839,1768707020315,624.05,0.00027397,120]
[402555840,1768707020384,624.05,0.00027397,120]
[402555841,1768707020519,624.05,0.00027397,120]
[402555842,1768707020733,420.78333396,9.607e-05,2]
[402555843,1768707020948,624.05,0.00027397,120]
[402555844,1768707021198,624.05,0.00027397,120]
[402555845,1768707021397,478.99884806,9.607e-05,2]
[402555846,1768707021450,624.05,0.00027397,120]
[402555847,1768707021664,624.05,0.00027397,120]
[402555848,1768707021809,566.36641905,0.00012329,2]
[402555849,1768707021892,624.05,0.00027397,120]
[402555850,1768707022113,624.05,0.00027397,120]
[402555851,1768707022342,624.05,0.00027397,120]
[402555852,1768707022513,500.0,9.607e-05,2]
[402555853,1768707022567,624.05,0.00027397,120]
[402555854,1768707022605,500.0,9.607e-05,2]
[402555855,1768707022652,501.17715149,0.00027397,120]
[402555856,1768707022681,359.03267642,9.607e-05,2]
[402555857,1768707022799,624.05,0.00027397,120]
[402555858,1768707022860,282.09261711,0.00027397,120]
[402555859,1768707023033,624.05,0.00027397,120]
[402555860,1768707023287,624.05,0.00027397,120]
[402555861,1768707023530,624.05,0.00027397,120]
[402555862,1768707023765,624.05,0.00027397,120]
[402555863,1768707024002,624.19867491,0.00027397,120]
[402555864,1768707024815,500.0,0.00027397,120]
[402555865,1768707024985,500.84619184,0.00027397,120]
[402555866,1768707026383,249.25627986,9.607e-05,2]
[402555867,1768707026670,314.30910723,9.607e-05,2]
[402555868,1768707026893,500.0,0.00027397,120]
[402555869,1768707027141,500.37365941,0.00027397,120]
[402555870,1768707028983,500.0,0.00027397,120]
[402555871,1768707029214,500.0,0.00027397,120]
[402555872,1768707029449,500.0,0.00027397,120]
[402555873,1768707029672,500.87733351,0.00027397,120]
[402555892,1768707032008,500.0,0.00027397,120]
[402555906,1768707032230,501.22716546,0.00027397,120]
[402555910,1768707032263,-306.6029469,0.00013281,2]
[402555911,1768707032272,-609.0,0.00013281,2]
[402555913,1768707032282,-899.31,0.00013307,2]
[402555914,1768707032292,-300.0,0.00013611,2]
[402555916,1768707032301,-300.0,0.00013611,2]
[402555917,1768707032311,-300.0,0.00013611,2]
[402555918,1768707032320,-300.0,0.00013611,2]
[402555919,1768707032330,-1200.0,0.00013611,2]
[402555920,1768707032341,-504.05873841,0.00013612,2]
[402555922,1768707032350,-2016.23495365,0.00013612,2]
[402555924,1768707032360,-4531.99211707,0.00013612,2]
[402555926,1768707032369,-538.18995762,0.00013612,2]
[402555928,1768707032379,-2150.60707065,0.00013612,2]
[402555930,1768707032388,-548.24301099,0.00013698,2]
[402555932,1768707032398,-1000.0,0.00013699,2]
[402555934,1768707032407,-500.0,0.00013699,2]
[402555936,1768707032417,-160.07075047,0.00013699,2]
[402555938,1768707032427,-1049.2,0.00014139,2]
[402555939,1768707032437,-1000.0,0.00014247,2]
[402555940,1768707032450,-200.0,0.00014519,2]
[402555941,1768707032460,-500.0,0.00014519,2]
[402555942,1768707032469,-500.0,0.00014519,2]
[402555943,1768707032479,-426.72574179,0.00014519,2]
[402555944,1768707032491,-73.27425821,0.00014519,2]
[402555945,1768707032501,-307.30221587,0.00014519,2]
[402555946,1768707034496,830.25,0.00027397,120]
[402555947,1768707034732,830.25,0.00027397,120]
[402555948,1768707035098,830.25,0.00027397,120]
[402555949,1768707035255,830.25,0.00027397,120]
[402555950,1768707035478,830.25,0.00027397,120]
[402555951,1768707035664,830.25,0.00027397,120]
[402555952,1768707035710,884.16,0.00027397,120]
[402555953,1768707035902,830.25,0.00027397,120]
[402555954,1768707035956,884.16,0.00027397,120]
[402555955,1768707036131,830.25,0.00027397,120]
[402555956,1768707036193,884.16,0.00027397,120]
[402555957,1768707036354,830.25,0.00027397,120]
[402555958,1768707036459,884.16,0.00027397,120]
[402555959,1768707036581,830.25,0.00027397,120]
[402555960,1768707036695,884.16,0.00027397,120]
[402555961,1768707036803,830.25,0.00027397,120]
[402555962,1768707036928,884.16,0.00027397,120]
[402555963,1768707037035,830.25,0.00027397,120]
[402555964,1768707037154,884.16,0.00027397,120]
[402555965,1768707037287,830.25,0.00027397,120]
[402555966,1768707037415,500.0,0.00027397,120]
[402555967,1768707037528,830.25,0.00027397,120]
[402555968,1768707037647,500.59529764,0.00027397,120]
[402555970,1768707037746,884.16,0.00027397,120]
[402555971,1768707037794,830.25,0.00027397,120]
[402555972,1768707037937,622.96336897,0.00027397,120]
[402555973,1768707037991,884.16,0.00027397,120]
[402555975,1768707038042,830.25,0.00027397,120]
[402555993,1768707038223,884.16,0.00027397,120]
[402555999,1768707038277,830.25,0.00027397,120]
[402556003,1768707038318,-192.69778413,0.00014519,2]
[402556005,1768707038329,-500.0,0.00014519,2]
[402556007,1768707038339,-210.70380537,0.00014519,2]
[402556009,1768707038348,-500.0,0.00014519,2]
[402556010,1768707038358,-500.0,0.00014519,2]
[402556012,1768707038368,-106.08921318,0.00014519,2]
[402556013,1768707038383,-393.91078682,0.00014519,2]
[402556015,1768707038393,-192.98639241,0.0001452,2]
[402556016,1768707038406,-2122.90237836,0.0001452,2]
[402556017,1768707038418,-684.11122923,0.0001452,2]
[402556018,1768707038429,-162.380719,0.00014623,2]
[402556019,1768707038439,-168.3888056,0.00014623,2]
[402556020,1768707038450,-174.61919141,0.00014623,2]
[402556021,1768707038460,-181.08010149,0.00014623,2]
[402556022,1768707038470,-187.78006525,0.00014623,2]
[402556023,1768707038479,-194.72792766,0.00014623,2]
[402556024,1768707038491,-445.202766,0.00014623,2]
[402556025,1768707038500,-201.93286099,0.00014623,2]
[402556026,1768707038511,-209.40437684,0.00014623,2]
[402556027,1768707038521,-217.15233878,0.00014623,2]
[402556028,1768707038532,-225.18697532,0.00014623,2]
[402556029,1768707038543,-233.51889341,0.00014623,2]
[402556030,1768707038553,-242.15909246,0.00014623,2]
[402556031,1768707038563,-251.11897888,0.00014623,2]
[402556032,1768707038573,-260.4103811,0.00014623,2]
[402556033,1768707038584,-270.0455652,0.00014623,2]
[402556034,1768707038593,-280.03725112,0.00014623,2]
[402556035,1768707038603,-290.39862941,0.00014623,2]
[402556036,1768707038613,-301.1433787,0.00014623,2]
[402556037,1768707038623,-2150.738,0.00014623,2]
[402556038,1768707038633,-503.82827291,0.00014656,2]
[402556039,1768707038643,-514.71663907,0.00014656,2]
[402556040,1768707038653,-500.67503113,0.00014656,2]
[402556041,1768707038662,-500.0,0.00014656,2]
[402556042,1768707038672,-508.01963944,0.00014656,2]
[402556043,1768707038681,-500.0,0.00014656,2]
[402556044,1768707038691,-500.47439032,0.00014656,2]
[402556045,1768707038701,-500.0,0.00014656,2]
[402556046,1768707038710,-500.0,0.00014793,2]
[402556047,1768707038720,-450.0,0.00014793,2]
[402556048,1768707038730,-450.0,0.00014793,2]
[402556049,1768707038740,-1500.0,0.00014795,2]
[402556050,1768707038750,-500.0,0.00014915,2]
[402556051,1768707038759,-300.0,0.00014918,2]
[402556052,1768707038769,-500.0,0.0001493,2]
[402556053,1768707038779,-1199.08,0.00014971,2]
[402556054,1768707038789,-1200.0,0.00014972,2]
[402556055,1768707038799,-1041.66666667,0.00014981,2]
[402556056,1768707038809,-250.0,0.00015067,2]
[402556057,1768707038820,-461.67526834,0.00015171,2]
[402556058,1768707038830,-2230.315306,0.00015171,2]
[402556059,1768707038840,-184.9581126,0.00015267,2]
[402556060,1768707038850,-1205.0026854,0.00015267,2]
[402556061,1768707038860,-347.1827487,0.00015281,2]
[402556062,1768707038869,-250.0,0.00015326,2]
[402556063,1768707038879,-486.89,0.00015332,3]
[402556064,1768707038890,-362.4365886,0.00015341,2]
[402556065,1768707038901,-500.0,0.00015341,2]
[402556066,1768707038912,-399.2793643,0.00015341,2]
[402556067,1768707038922,-500.0,0.00015341,2]
[402556068,1768707038933,-500.0,0.00015341,2]
[402556069,1768707038944,-388.17734442,0.00015341,2]
[402556070,1768707038955,-2000.0,0.00015342,2]
[402556071,1768707038966,-749.9,0.00015453,3]
[402556072,1768707038976,-649.16,0.00015453,3]
[402556073,1768707038986,-324.58,0.00015453,3]
[402556074,1768707038996,-162.29,0.00015453,3]
[402556075,1768707039007,-359.43700508,0.00015616,2]
[402556076,1768707039017,-1436.31027229,0.00015616,2]
[402556077,1768707039028,-478.75725327,0.00015719,2]
[402556078,1768707039038,-2312.83697232,0.00015719,2]
[402556079,1768707039048,-1348.97,0.00015802,2]
[402556080,1768707039060,-3000.0,0.0001589,2]
[402556081,1768707039070,-505.31135578,0.0001589,2]
[402556082,1768707039080,-2000.0,0.00016137,2]
[402556083,1768707039090,-2000.0,0.0001614,2]
[402556084,1768707039100,-2000.0,0.0001614,2]
[402556085,1768707039110,-2000.0,0.0001614,2]
[402556086,1768707039120,-2000.0,0.0001614,2]
[402556087,1768707039129,-2000.0,0.0001614,2]
[402556088,1768707039139,-2000.0,0.0001614,2]
[402556089,1768707039150,-2000.0,0.0001614,2]
[402556090,1768707039160,-2000.0,0.0001614,2]
[402556091,1768707039170,-2000.0,0.0001614,2]
[402556092,1768707039180,-2000.0,0.0001614,2]
[402556093,1768707039190,-2000.0,0.0001614,2]
[402556094,1768707039199,-2000.0,0.0001614,2]
[402556095,1768707039209,-2000.0,0.0001614,2]
[402556096,1768707039219,-1036.436,0.0001614,2]
[402556097,1768707039229,-177.271,0.0001626,2]
[402556098,1768707039239,-178.58218479,0.0001626,2]
[402556099,1768707039249,-496.47127164,0.00016267,2]
[402556100,1768707039259,-2398.4119403,0.00016267,2]
[402556101,1768707039268,-264.0,0.00016276,2]
[402556102,1768707039278,-264.0,0.00016284,2]
[402556103,1768707039288,-2089.21,0.000163,2]
[402556104,1768707039298,-264.0,0.00016309,2]
[402556105,1768707039308,-551.30141593,0.0001631,2]
[402556106,1768707039318,-725.9583803,0.00016338,2]
[402556107,1768707039328,-128252.52634234,0.00016338,2]
[402556108,1768707039338,-9319.4153485,0.00016342,2]
[402556109,1768707039348,-4860.40228603,0.00016378,2]
[402556110,1768707039357,-500.0,0.00016438,2]
[402556111,1768707039367,-500.0,0.00016438,2]
[402556112,1768707039376,-501.57088913,0.00016438,2]
[402556113,1768707039386,-501.14196509,0.00016438,2]
[402556114,1768707039395,-500.0,0.00016438,2]
[402556115,1768707039406,-213.69484065,0.00016438,2]
[402556116,1768707039415,-853.92458325,0.00016438,2]
[402556117,1768707039423,-199.53309918,0.00016438,2]
[402556118,1768707039431,-797.33426434,0.00016438,2]